Cogmind - Beta 15 @@@ ROGUE MODE // 2025.10.14 @ 19:56:06 Player: beans Result: Destroyed by Y-54 Guardian with Flak Gun Performance ------------- Evolutions (0) 0 Regions Visited (4) 800 Robots Destroyed (31) 155 Value Destroyed (542) 542 Prototype IDs (0) 0 Alien Tech Used (0) 0 Bonus (-38) -38 TOTAL SCORE: 1459 Bonus ------- Follower Combat Kills 88 Friendly Fire -126 Cogmind --------- Core Integrity 0/250 Matter 265/300 Energy 100/100 System Corruption 4% Temperature Cool (18) Movement Treading (160) Location -7/Recycling Parts ------- > --- POWER (1) -------- (None) > --- PROPULSION (2) --- Light Treads > --- UTILITY (2) ------ Cooling System Transport Network Coupler > --- WEAPON (2) ------- Mini Grenade Launcher > --- INVENTORY (5) ---- High-capacity Matter Pod (200) Gatling Laser Barrage Gun Battle Cannon Mini Grenade Launcher Peak State ------------ > --- POWER ------------ Micro Nuclear Core > --- PROPULSION ------- Light Treads > --- UTILITY ---------- Cooling System Transport Network Coupler > --- WEAPON ----------- Gatling Laser Heavy Battle Rifle > --- INVENTORY -------- High-capacity Matter Pod Barrage Gun Battle Cannon Mini Grenade Launcher Mini Grenade Launcher [Rating: 17] Favorites ----------- Power Ion Engine Engine Ion Engine Power Core Micro Nuclear Core Propulsion Aluminum Leg Treads Light Treads Leg Aluminum Leg Utility Transport Network Coupler Device Cooling System Processor Transport Network Coupler Weapon Assault Rifle Energy Gun Gatling Laser Ballistic Gun Assault Rifle Ballistic Cannon Battle Cannon Launcher Mini Grenade Launcher Build | -11 -10 -10 -10 -7 ------- Run | Yrd Mat Min Sub Rec Slots Evolved . | . . . . . Power . | . . . . . Propulsion . | . . . . . Utility . | . . . . . Weapon . | . . . . . Parts Attached 21 | 4 8 2 2 5 Power 5 | . 4 . . 1 Engine 3 | . 3 . . . Core 2 | . 1 . . 1 Reactor . | . . . . . Propulsion 4 | 2 1 . . 1 Treads 1 | . . . . 1 Leg 3 | 2 1 . . . Wheel . | . . . . . Hover . | . . . . . Flight . | . . . . . Utility 3 | . 2 . . 1 Device 2 | . 1 . . 1 Storage . | . . . . . Processor 1 | . 1 . . . Hackware . | . . . . . Protection . | . . . . . Artifact . | . . . . . Weapon 9 | 2 1 2 2 2 Energy Gun 1 | . . . . 1 Energy Cannon . | . . . . . Ballistic Gun 6 | 2 1 2 1 . Ballistic Cannon 1 | . . . 1 . Launcher 1 | . . . . 1 Special Weapon . | . . . . . Impact Weapon . | . . . . . Slashing Weapon . | . . . . . Piercing Weapon . | . . . . . Special Melee Weapon . | . . . . . Unidentified Prototypes . | . . . . . Parts Lost 9 | . 2 2 . 5 Power 3 | . 1 . . 2 Propulsion 2 | . . 1 . 1 Utility 1 | . . . . 1 Weapon 3 | . 1 1 . 1 Highest Loss Streak 3 | . 2 2 . 3 To Critical Strikes . | . . . . . Average Backups 4 | . 4 4 5 5 Power . | . . . . . Propulsion . | . . . . . Utility 1 | . 1 2 2 1 Weapon 2 | . 2 2 3 3 Tool/Special . | . . . . . Unused Backups 2 | . . . . 2 Power . | . . . . . Propulsion . | . . . . . Utility 1 | . . . . 1 Weapon 1 | . . . . 1 Tool/Special . | . . . . . Average Slot Usage (%) 83 | . 83 84 85 78 Engine 10 | . 5 14 14 4 Core 1 | . 2 . . 5 Leg 16 | . 28 14 14 4 Device 12 | . 8 14 14 13 Processor 12 | . 9 14 14 14 Energy Gun 1 | . . . . 8 Ballistic Gun 25 | . 28 27 23 19 Peak Build Rating 17 | 4 10 10 12 17 Average Rating 9 | 2 6 9 11 13 On Entrance 6 | . 4 8 10 12 Naked Turns . | . . . . . Heaviest Build 16 | 4 11 13 14 16 Greatest Support 20 | 20 20 10 10 20 Greatest Overweight (x) 3 | . . 1 1 3 Average Overweight (x) . | . . . 1 . Largest Inventory Capacity 5 | 5 5 5 5 5 Average Capacity 5 | 5 5 5 5 5 Most Carried 5 | 4 5 5 5 5 Average Carried 4 | . 4 4 4 4 Final Capacity 5 | 5 5 5 5 5 Final Carried 5 | . 4 5 5 5 Class Distribution -------------------- 93% | Mutant 6% | Scavenger-Mutant Dominant Class ---------------- Mutant | -10/Materials Mutant | -10/Mines Mutant | -10/Subcaves Mutant | -7/Recycling Resources | -11 -10 -10 -10 -7 ----------- Run | Yrd Mat Min Sub Rec Matter Collected 1216 | 240 314 420 168 74 Remotely . | . . . . . Salvage Created 990 | . 393 266 131 200 Parts 67 | . 30 22 1 14 Haulers Intercepted 2 | . 2 . . . Recyclers Shooed 5 | . 2 2 . 1 Parts Field Recycled . | . . . . . Retrieved Matter . | . . . . . Parts Self-Destructed 6 | . . . 6 . Prevented . | . . . . . Kills | -11 -10 -10 -10 -7 ------- Run | Yrd Mat Min Sub Rec Combat Hostiles Destroyed 14 | . 7 5 1 1 Guns 13 | . 7 5 . 1 Cannons 1 | . . . 1 . Classes Destroyed 11 | . 5 3 2 1 Worker 4 | . 2 2 . . Builder 2 | . . 1 . 1 Tunneler 1 | . . 1 . . Hauler 2 | . 2 . . . Recycler 3 | . . 1 . 2 Turret 2 | . . . 2 . Watcher 2 | . 2 . . . Swarmer 6 | . 3 3 . . Grunt 6 | . 4 2 . . Sentry 1 | . . . . 1 Subdweller 1 | . . . 1 . Thug 1 | . . . 1 . Best Kill Streak 3 | . 2 3 2 3 Combat Bots Only 3 | . 2 3 1 1 Max Kills in Single Turn 2 | . 2 1 1 2 Gunslinging 1 | . 1 . . . Exploded . | . . . . . Melee . | . . . . . Uniques/NPCs Destroyed . | . . . . . Combat | -11 -10 -10 -10 -7 -------- Run | Yrd Mat Min Sub Rec Hostile Shots Fired 193 | . 48 27 28 90 Missed 66 | . 11 5 15 35 Hits 127 | . 37 22 13 55 Projectile 127 | . 37 22 13 55 Critical Strikes 1 | . . 1 . . Damage Taken 1258 | . 516 201 141 400 Core 251 | . 28 42 60 121 Absorbed by Shields . | . . . . . Core Remaining (%) 100 | 100 . . . . Volleys Fired 103 | . 43 31 16 13 Largest 2 | . 2 2 2 2 Hottest 113 | . 40 53 66 113 Shots Fired 198 | . 86 54 32 26 Gun 195 | . 86 54 30 25 Cannon 2 | . . . 2 . Launcher 1 | . . . . 1 Special . | . . . . . Kinetic 190 | . 86 54 32 18 Thermal 7 | . . . . 7 Explosive 1 | . . . . 1 Electromagnetic . | . . . . . Robot Hit Streak 20 | . 13 15 12 20 Robot Miss Streak 4 | . 4 4 2 2 Penetration Max . | . . . . . Secondary Targets 2 | . 2 . . . Max Gunslinging Chain 1 | . 1 . . . Shots Hit Robots 127 | . 54 35 17 21 Core Hits 52 | . 22 15 6 9 Critical Kills . | . . . . . Critical Parts Destroyed . | . . . . . Critical Strikes . | . . . . . Melee Attacks . | . . . . . Impact . | . . . . . Slashing . | . . . . . Piercing . | . . . . . Sneak Attacks . | . . . . . Combat Hostiles . | . . . . . Follow-up Attacks . | . . . . . Damage Inflicted 2077 | . 704 490 379 504 Guns 1973 | . 704 490 327 452 Cannons 52 | . . . 52 . Explosions 52 | . . . . 52 Melee . | . . . . . Ramming . | . . . . . Kinetic 1893 | . 704 490 379 320 Thermal 132 | . . . . 132 Explosive 52 | . . . . 52 Electromagnetic . | . . . . . Impact . | . . . . . Slashing . | . . . . . Piercing . | . . . . . Highest Corruption 4 | . 4 4 4 4 Average Corruption 3 | . 3 4 4 4 Corruption Purged . | . . . . . Corruption Blocked . | . . . . . Effects 42 | . 1 23 11 7 Message Errors 8 | . 1 5 2 . Matter Fused 13 | . . 10 2 1 Heat Flow Errors 6 | . . 2 4 . Energy Discharges 6 | . . 3 . 3 Parts Fused 3 | . . 1 1 1 Data Loss (minor) 3 | . . . 2 1 Data Loss (major) 2 | . . 1 . 1 Misfires 1 | . . 1 . . Overload Shots . | . . . . . Overflow Damage . | . . . . . Projectiles . | . . . . . Explosions . | . . . . . Melee . | . . . . . Knockbacks . | . . . . . Impact . | . . . . . Kinetic . | . . . . . Secondary . | . . . . . Self-Inflicted Damage . | . . . . . Shots . | . . . . . Rammed . | . . . . . Targets Rammed . | . . . . . Kicked . | . . . . . Crushed . | . . . . . Highest Temperature 227 | . . 207 227 28 Average Temperature 73 | . . 109 117 11 Received Heat Transfer 504 | . 234 69 81 120 Siege Activations . | . . . . . Martial Activations . | . . . . . Shielding Activations . | . . . . . Robots Disrupted . | . . . . . Combat Hostiles . | . . . . . Robots Corrupted . | . . . . . Combat Hostiles . | . . . . . Parts Fried . | . . . . . Impact Corruptions . | . . . . . Robots Melted . | . . . . . Combat Hostiles . | . . . . . Parts Melted . | . . . . . Heat Transferred 300 | . . . . 300 Parts Sabotaged . | . . . . . Parts Stolen . | . . . . . Parts Stripped . | . . . . . Power Chain Reactions . | . . . . . Alert | -11 -10 -10 -10 -7 ------- Run | Yrd Mat Min Sub Rec Maximum Alert Level . | . . . . . Low Security (%) 100 | 100 100 100 . 100 Level 1 . | . . . . . Level 2 . | . . . . . Level 3 . | . . . . . Level 4 . | . . . . . Level 5 . | . . . . . High Security . | . . . . . Max Security . | . . . . . Peak Influence 85 | . 65 85 . 39 Initial 39 | . . . . 39 Average 12 | . 15 11 . 8 Influence Increases 616 | . 223 160 190 43 Destroy 0b10 Robot/C 380 | . 140 100 120 20 Destroy 0b10 Robot/NC 70 | . 30 25 . 15 Destroy Leader 58 | . 38 20 . . Allied During Kill 10 | . . . 10 . Disable Machine 15 | . . 15 . . Destroy Structure 8 | . . . . 8 Lose Combat Pursuer 75 | . 15 . 60 . Influence Decreases 616 | . 223 160 107 126 Entered New Map 44 | . . . . 44 Time Decay 465 | . 209 150 32 74 Lost Part 32 | . 14 10 . 8 Lost Ally 75 | . . . 75 . Squads Dispatched 1 | . 1 . . . Investigation . | . . . . . Extermination . | . . . . . Reinforcement 1 | . 1 . . . Assault . | . . . . . Garrison . | . . . . . Intercept . | . . . . . Searches Triggered . | . . . . . Construction Impeded . | . . . . . Haulers Reinforced . | . . . . . Active Scanning Responses . | . . . . . Cargo Convoy Interrupts . | . . . . . Stealth | -11 -10 -10 -10 -7 --------- Run | Yrd Mat Min Sub Rec Distress Signals 2 | . 2 . . . Communications Jammed . | . . . . . Distress Signals . | . . . . . Times Spotted 32 | . 15 5 9 3 Peak Tracking Total 6 | . 3 3 6 2 Tactical Retreats 3 | . 1 . 2 . Traps | -11 -10 -10 -10 -7 ------- Run | Yrd Mat Min Sub Rec Traps Triggered 3 | . 3 . . . Indirectly . | . . . . . Trap Hack Attempts . | . . . . . Triggered . | . . . . . Disarmed . | . . . . . Reprogrammed . | . . . . . Reused . | . . . . . Traps Extracted . | . . . . . Installed . | . . . . . Triggered . | . . . . . Machines | -11 -10 -10 -10 -7 ---------- Run | Yrd Mat Min Sub Rec Machines Disabled 1 | . . 1 . . Max in Single Turn 1 | . . 1 . . Machines Repaired . | . . . . . Machines Dismantled . | . . . . . Machines Sabotaged . | . . . . . Overloaded Fab Kills . | . . . . . Hacking | -11 -10 -10 -10 -7 --------- Run | Yrd Mat Min Sub Rec Machines Accessed . | . . . . . Terminals . | . . . . . Fabricators . | . . . . . Repair Stations . | . . . . . Recycling Units . | . . . . . Scanalyzers . | . . . . . Garrison Access . | . . . . . Total Hacks . | . . . . . Successful . | . . . . . Failed . | . . . . . Catastrophic . | . . . . . Database Lockouts . | . . . . . Manual . | . . . . . Terminals . | . . . . . Fabricators . | . . . . . Repair Stations . | . . . . . Recycling Units . | . . . . . Scanalyzers . | . . . . . Garrison Access . | . . . . . Terminal Hacks . | . . . . . Fabricator Hacks . | . . . . . Repair Station Hacks . | . . . . . Recycling Unit Hacks . | . . . . . Scanalyzer . | . . . . . Garrison Access Hacks . | . . . . . Unauthorized Hacks . | . . . . . Terminals . | . . . . . Fabricators . | . . . . . Repair Stations . | . . . . . Recycling Units . | . . . . . Scanalyzers . | . . . . . Garrison Access . | . . . . . Data Cores Recovered . | . . . . . Used . | . . . . . Hacking Detections . | . . . . . Full Trace Events . | . . . . . Feedback Events . | . . . . . Feedback Blocked . | . . . . . Robot Schematics Acquired . | . . . . . Robots Built . | . . . . . Authchips . | . . . . . Time . | . . . . . Total Robot Build Rating . | . . . . . Part Schematics Acquired . | . . . . . Parts Built . | . . . . . Authchips . | . . . . . Time . | . . . . . Total Part Build Rating . | . . . . . Parts Repaired . | . . . . . Time . | . . . . . Parts Recycled . | . . . . . Recycled Matter . | . . . . . Retrieved Matter . | . . . . . Retrieved Components . | . . . . . Parts Scanalyzed . | . . . . . Part Schematics Acquired . | . . . . . Parts Damaged . | . . . . . Bothacking | -11 -10 -10 -10 -7 ------------ Run | Yrd Mat Min Sub Rec Used RIF Installer . | . . . . . Robots Hacked . | . . . . . Non-combat . | . . . . . Combat . | . . . . . Robot Hacks Applied . | . . . . . Relay Couplers Released . | . . . . . Fabnet Peak Effective % . | . . . . . Robots Rewired . | . . . . . Allies Hacked . | . . . . . Hacks Repelled . | . . . . . Allies | -11 -10 -10 -10 -7 -------- Run | Yrd Mat Min Sub Rec Total Allies 5 | . . 5 . . Largest Group 5 | . . 5 5 . Highest-Rated Group 83 | . . 83 83 . Highest-Rated Ally 31 | . . 31 31 . Total Orders . | . . . . . Ally Attacks 24 | . . . 24 . Total Damage 565 | . . . 565 . Kills 6 | . . . 6 . Allies Corrupted . | . . . . . Allies Melted . | . . . . . Intel | -11 -10 -10 -10 -7 ------- Run | Yrd Mat Min Sub Rec Active Infowar (turns) 2399 | . 512 1006 541 340 T.N.C. 2399 | . 512 1006 541 340 Robot Analysis Total . | . . . . . Derelict Logs Recovered 3 | . . 2 1 . Drone Launches . | . . . . . Drone Recoveries . | . . . . . Exploration | -11 -10 -10 -10 -7 ------------- Run | Yrd Mat Min Sub Rec Turns Passed 2709 | 39 783 1006 541 340 Spaces Moved 1493 | 32 513 526 252 170 Core 17 | 10 . . . 7 Treads 102 | . . . . 102 Legs 1374 | 22 513 526 252 61 Wheels . | . . . . . Hover . | . . . . . Flight . | . . . . . Fastest Speed 50 | 50 120 120 190 150 Average Speed 155 | 98 120 172 190 171 Slowest Speed 200 | 120 120 190 190 200 Overloaded Moves . | . . . . . Propulsion Burnouts . | . . . . . Robots Hopped . | . . . . . Potential Cave-ins . | . . . . . Cave-ins Triggered . | . . . . . Exploration Rate (%) 49 | 4 84 91 29 40 Regions Visited 4 Branch Regions 3 Pre-discovered Areas 1 | . . 1 . . Known Exits Taken . | . . . . . Unknown Exits Taken 4 | 1 1 1 1 . Scrap Searched 2 | . . 2 . . Spaces Dug . | . . . . . Terrain Destroyed 10 | . . . 2 8 Melee . | . . . . . Projectile 2 | . . . 2 . AOE 8 | . . . . 8 Terrain Rammed . | . . . . . Walls Destroyed . | . . . . . Machines Disabled . | . . . . . Actions | -11 -10 -10 -10 -7 --------- Run | Yrd Mat Min Sub Rec Total 1685 | 39 595 576 284 191 Wait 50 | . 20 16 12 2 Move 1489 | 31 512 525 251 170 Hop . | . . . . . Pick Up 16 | 4 9 2 1 . Fast Attach 5 | . 1 . 1 3 Attach 11 | 4 5 1 . 1 Detach 1 | . . . . 1 Swap 5 | . 2 1 1 1 Drop 5 | . 3 . 2 . Fire 103 | . 43 31 16 13 Melee . | . . . . . Ram . | . . . . . Kick . | . . . . . Crush . | . . . . . Escape Stasis . | . . . . . Rewire . | . . . . . Trap . | . . . . . Miscellaneous . | . . . . . Route ------- -11/Scrapyard -10/Materials (discovered 4 exits: [*Mat x3] / [*Min]) -10/Mines -10/Subcaves -7/Recycling History --------- Turn | Location | Event 3 | -11/Scrapyard | Discovered new exit (range 15) 40 | -11/Scrapyard | Entered Materials 137 | -10/Materials | Discovered new exit (range 7) 258 | -10/Materials | Discovered new exit (range 7) 307 | -10/Materials | Build established: Mutant 567 | -10/Materials | Discovered new exit (range 3) 795 | -10/Materials | Discovered new exit (range 11) 823 | -10/Materials | Entered Mines 949 | -10/Mines | Met a Derelict bent on vengeance 963 | -10/Mines | Assisted by bots powering up and referring to "LRC-V3" 1039 | -10/Mines | A weapon hastily lodged in a ceiling crevice suddenly fell to the ground 1079 | -10/Mines | Learned Materials garrison access intel 1189 | -10/Mines | Learned location of Recycling (-7) 1807 | -10/Mines | Discovered new exit (range 5) 1829 | -10/Mines | Entered Subcaves 1829 | -10/Subcaves | Accompanied by 5 allies 1830 | -10/Subcaves | Approached by a straggling Scientist 1834 | -10/Subcaves | Led the pair of lost Derelicts to an unsafe place 1984 | -10/Subcaves | Shifting Twisted Machinery released Battle Cannon 2013 | -10/Subcaves | Learned 4 Materials zone layouts 2064 | -10/Subcaves | Shifting Twisted Machinery released Battle Cannon 2331 | -10/Subcaves | Discovered new exit (range 14) 2334 | -10/Subcaves | Core integrity fell below 50% 2349 | -10/Subcaves | Lost 4 allies 2370 | -10/Subcaves | Entered Recycling 2520 | -7/Recycling | Lost 3 parts (1p1n1u) 2701 | -7/Recycling | Core integrity fell below 20% 2710 | -7/Recycling | Destroyed by Y-54 Guardian with Flak Gun Last Messages --------------- Acquired 23 matter. R-06 Scavenger collects Wheel. Acquired Lgt. Treads. System corrupted: Component data lost. R-06 Scavenger collects Wheel. R-06 Scavenger collects Lgt. Ion Engine. Acquired 10 matter. Acquired 3 matter. R-06 Scavenger destroyed. Acquired 3 matter. System corrupted: Hvy. Battle Rifle fused. Acquired Mic. Nuclear Core. System corrupted: Substantial component data lost. System corrupted: Energy discharge (-43). System corrupted: Energy discharge (-58). Y-54 Guardian springs to life. Y-54 Guardian heat damages Lgt. Treads. Mic. Nuclear Core destroyed. Hvy. Battle Rifle destroyed. Map ----- +----------------------------------------------------+ | ?????????????????????????????????????????????????? | | ?????????????????????????????????????????????????? | | ?????????????????????????????????????????????????? | | ?????????????????????????????????????????????????? | | ?????????????????????????????????????????????????? | | ?????????????????????????????????????????????????? | | ?????????????????????????????????????????????????? | | ?????????????????????????????????????????????????? | | ?????????????????????????????????????????????????? | | ?????????????????????????????????????????????????? | | ?????????????????????????????????????????????????? | | ?????????????????????????????????????????????????? | | ?????????????????????????????????????????????????? | | ?????????????????????????????????????????????????? | | ???????????????##########????????????????????????? | | ???????????????# #????????????????????????? | | ???????????????# #????????????????????????? | | ??????????????## #????????????????????????? | | ??????????????# #????????????????????????? | | ???????????????# #????????????????????????? | | ?###???????????# #????????????????????????? | | ## ##########??# #????????????????????????? | | !% #??# #????????????????????????? | | ##?# #???#####????????????????? | | #?##+###+##### #????????????????? | | ##??# @ #????????????????? | | [ #???# #????????????????? | | #???# r #????????????????? | | #??######+#### #????????????????? | | ] #??# #? YY #????????????????? | | = #??# """ #?# #????????????????? | | #??# "T" #?? #????????????????? | | #??# #??# #????????????????? | | #??# #??? ##????????????????? | | ##+##########??# """ #??? #?????????????????? | | ?# #???????????# """ #???? #?????????????????? | | ?# #??????####?# """ #???? #?????????????????? | | ##|#???? #?# #???? #?????????????????? | | #% #?? ! #?####/#####????? #?????????????????? | | ##!# ! ! #????# #????????????????????????????? | | =!%+! ! #????# #????????????????????????????? | | ##=# !! #????# ############?????????????????? | | ##*# ! ! #????# ## #?????????????????? | | ?# #? #????# ## """"""????????????????????? | | ?#=#?? ! #????# + """"""????????????????????? | | ?#%#???####?##????# # """""?????????????????????? | | ?# ################ # """""?????????????????????? | | ?# # """""?????????????????????? | | ?# # ?????????????????????? | | ?# """ # ?????????????????????? | +----------------------------------------------------+ Best States ------------- Heat Dissipation 47 Energy Generation 15 Energy Capacity 250 Matter Stores 300 Matter Capacity 300 Sight Range 16 Terrain Scan Density 10 Evasion (%) 55 Recoil Reduction 1 Item Schematics ----------------- None Robot Schematics ------------------ None Fabricated ------------ Nothing Repaired ---------- Nothing Alien Tech Used ----------------- None Achievements -------------- None Challenges ------------ None Game ------ Seed HybridSystemChainsaw Manual? 0 Play Time 00:12:42 Cumulative 186.6 hours Start 2025.10.14 @ 10:54:53 End 2025.10.14 @ 19:56:06 Sessions 1 Manual Loads 0 Difficulty Rogue Special Mode None Game No. 557 Rogue 556 Adventurer 1 Explorer 0 Win Type - Total 0 Types 0/0/0/0/0/0/0/0/0/0 Lore% 62 Gallery% 60 Achievement% 47 Wizard Run 0 Options --------- Layout 1 ASCII 0 Keyboard 0 Movement Mouse Keybinds 0 Fullscreen 1 Font 24/Smallcaps Map View 50x35 Zoom Use 0% Tactical HUD 0 Map Filters NONE Filters NONE Steam 1 RUN: 834f942b-f115-4934-a57c-25abe5a62d76